fUST/lending_fUST_20240620
["ID","MTS","AMOUNT","RATE_DAILY","PERIOD"]
[329985766,1718897447015,-500.0,0.00055342,60]
[329985767,1718897447025,-500.0,0.00055342,120]
[329985768,1718897447035,-500.0,0.00055342,120]
[329985769,1718897447045,-500.0,0.00055342,120]
[329985770,1718897447056,-500.0,0.00055342,120]
[329985771,1718897447066,-519.96682912,0.00055342,120]
[329985772,1718897447077,-500.0,0.00055342,120]
[329985773,1718897447088,-500.0,0.00055342,120]
[329985774,1718897447098,-500.0,0.00055342,120]
[329985775,1718897447109,-500.0,0.00055342,120]
[329985776,1718897447118,-4385.27,0.00055342,120]
[329985777,1718897447128,-589.25,0.00055342,120]
[329985778,1718897447138,-1699.83,0.00055342,120]
[329985779,1718897447147,-23200.6,0.00055342,120]
[329985780,1718897447156,-500.0,0.00055342,120]
[329985781,1718897447166,-500.0,0.00055342,2]
[329985782,1718897447175,-500.0,0.00055342,120]
[329985783,1718897447185,-500.0,0.00055342,2]
[329985784,1718897447194,-2228.83,0.00055342,120]
[329985785,1718897447204,-2174.6,0.00055615,120]
[329985786,1718897447213,-500.0,0.00055615,120]
[329985787,1718897447223,-307.92995711,0.00055615,120]
[329985788,1718897447233,-788.73,0.00055616,120]
[329985789,1718897447242,-549.76,0.00055616,120]
[329985790,1718897447252,-200.0,0.00055616,7]
[329985791,1718897447261,-520.47,0.00055616,120]
[329985793,1718897447271,-500.0,0.00055616,2]
[329985795,1718897447280,-500.0,0.00055616,60]
[329985797,1718897447289,-500.0,0.00055616,120]
[329985798,1718897447298,-500.0,0.00055616,120]
[329985800,1718897447308,-192.7814065,0.00055616,120]
[329985802,1718897447317,-660.34,0.00055616,120]
[329985803,1718897447327,-500.0,0.00055616,120]
[329985804,1718897447336,-500.0,0.00055616,120]
[329985805,1718897447346,-2648.39,0.00055616,120]
[329985806,1718897447355,-500.0,0.00055616,120]
[329985807,1718897447365,-500.0,0.00055616,120]
[329985808,1718897447374,-500.0,0.00055616,120]
[329985809,1718897447384,-546.66,0.00055616,120]
[329985810,1718897447394,-987.5,0.00055616,120]
[329985811,1718897447403,-500.0,0.00055616,120]
[329985812,1718897447413,-500.0,0.00055616,120]
[329985813,1718897447422,-500.0,0.00055616,120]
[329985814,1718897447432,-500.0,0.00055616,120]
[329985815,1718897447442,-979.16,0.00055616,2]
[329985816,1718897447450,-628.91,0.00055616,120]
[329985817,1718897447460,-1592.49,0.00055616,120]
[329985818,1718897447469,-500.0,0.00055616,120]
[329985819,1718897447479,-500.0,0.00055616,120]
[329985820,1718897447488,-500.0,0.00055616,120]
[329985821,1718897447498,-298.29642922,0.00055616,120]
[329985822,1718897447507,-500.0,0.00055616,120]
[329985823,1718897447516,-500.0,0.00055616,120]
[329985824,1718897447525,-500.0,0.00055616,120]
[329985825,1718897447535,-500.0,0.00055616,120]
[329985826,1718897447544,-1297.44,0.00055616,21]
[329985827,1718897447556,-382.59182625,0.00055616,120]
[329985828,1718897447566,-2378.61,0.00055616,120]
[329985829,1718897447576,-2502.11,0.00055616,120]
[329985830,1718897447587,-500.0,0.00055616,120]
[329985831,1718897447598,-500.0,0.00055616,120]
[329985832,1718897447607,-500.0,0.00055616,120]
[329985833,1718897447616,-500.0,0.00055616,120]
[329985834,1718897447625,-260.40703479,0.00055616,120]
[329985835,1718897447635,-516.43,0.00055616,120]
[329985836,1718897447644,-500.0,0.00055616,120]
[329985837,1718897447654,-500.0,0.00055616,120]
[329985838,1718897447663,-500.0,0.00055616,120]
[329985839,1718897447674,-500.0,0.00055616,120]
[329985840,1718897447684,-500.0,0.00055616,120]
[329985841,1718897447693,-505.39077078,0.00055616,7]
[329985842,1718897447703,-2259.4,0.00055616,120]
[329985843,1718897447712,-280.78532065,0.00055616,120]
[329985844,1718897447722,-1052.92,0.00055616,120]
[329985845,1718897447731,-500.0,0.00055616,120]
[329985846,1718897447742,-500.0,0.00055616,120]
[329985847,1718897447752,-500.0,0.00055616,120]
[329985848,1718897447765,-500.0,0.00055616,120]
[329985849,1718897447777,-500.0,0.00055616,120]
[329985850,1718897447788,-500.0,0.00055616,120]
[329985851,1718897447798,-3684.15,0.00055616,120]
[329985852,1718897447810,-942.99,0.00055616,120]
[329985853,1718897447819,-564.27,0.00055616,120]
[329985854,1718897447829,-500.0,0.00055616,120]
[329985855,1718897447838,-505.48330168,0.00055616,120]
[329985856,1718897447851,-500.0,0.00055616,120]
[329985857,1718897447861,-500.0,0.00055616,120]
[329985858,1718897447871,-500.0,0.00055616,120]
[329985859,1718897447881,-2560.07,0.00055616,120]
[329985860,1718897447894,-953.87,0.00055616,120]
[329985861,1718897447906,-500.0,0.00055616,60]
[329985862,1718897447927,-500.0,0.00055616,120]
[329985863,1718897447942,-500.0,0.00055616,120]
[329985864,1718897447952,-500.0,0.00055616,120]
[329985865,1718897447962,-500.0,0.00055616,120]
[329985866,1718897447971,-500.0,0.00055616,120]
[329985867,1718897447983,-542.58115087,0.00055616,120]
[329985868,1718897447993,-520.31886397,0.00055616,120]
[329985869,1718897448004,-4385.27,0.00055616,120]
[329985870,1718897448013,-589.25,0.00055616,120]
[329985871,1718897448023,-1699.83,0.00055616,120]
[329985872,1718897448032,-23200.6,0.00055616,120]
[329985873,1718897448041,-500.0,0.00055616,120]
[329985874,1718897448051,-500.0,0.00055616,2]
[329985875,1718897448060,-500.0,0.00055616,120]
[329985876,1718897448070,-500.0,0.00055616,2]
[329985877,1718897448079,-2174.6,0.00055888,120]
[329985878,1718897448089,-2174.6,0.00055889,120]
[329985879,1718897448099,-173.35286256,0.0005589,61]
[329985880,1718897448108,-788.73,0.0005589,120]
[329985881,1718897448117,-549.76,0.0005589,120]
[329985882,1718897448126,-200.0,0.0005589,7]
[329985883,1718897448135,-520.47,0.0005589,120]
[329985884,1718897448145,-500.0,0.0005589,2]
[329985885,1718897448154,-500.0,0.0005589,60]
[329985886,1718897448164,-660.34,0.0005589,120]
[329985887,1718897448173,-500.0,0.0005589,120]
[329985888,1718897448183,-500.0,0.0005589,120]
[329985889,1718897448192,-2648.39,0.0005589,120]
[329985890,1718897448204,-500.0,0.0005589,120]
[329985891,1718897448288,-500.0,0.0005589,120]
[329985892,1718897448298,-500.0,0.0005589,120]
[329985893,1718897448307,-987.5,0.0005589,120]
[329985894,1718897448317,-500.0,0.0005589,120]
[329985895,1718897448327,-584.83782563,0.0005589,120]
[329985896,1718897448336,-500.0,0.0005589,120]
[329985897,1718897448346,-500.0,0.0005589,120]
[329985898,1718897448355,-979.16,0.0005589,2]
[329985899,1718897448364,-628.91,0.0005589,120]
[329985900,1718897448374,-1592.49,0.0005589,120]
[329985901,1718897448383,-500.0,0.0005589,120]
[329985902,1718897448393,-500.0,0.0005589,120]
[329985903,1718897448402,-500.0,0.0005589,120]
[329985904,1718897448411,-509.5859671,0.0005589,120]
[329985905,1718897448421,-532.17349156,0.0005589,120]
[329985906,1718897448431,-500.0,0.0005589,120]
[329985907,1718897448440,-1297.44,0.0005589,21]
[329985908,1718897448449,-2378.61,0.0005589,120]
[329985909,1718897448460,-2502.11,0.0005589,120]
[329985910,1718897448469,-500.0,0.0005589,120]
[329985911,1718897448478,-500.0,0.0005589,120]
[329985912,1718897448488,-500.0,0.0005589,120]
[329985913,1718897448498,-500.0,0.0005589,120]
[329985914,1718897448507,-516.43,0.0005589,120]
[329985915,1718897448516,-500.0,0.0005589,120]
[329985916,1718897448525,-500.0,0.0005589,120]
[329985917,1718897448535,-500.0,0.0005589,120]
[329985918,1718897448544,-500.0,0.0005589,120]
[329985919,1718897448553,-500.0,0.0005589,120]
[329985920,1718897448562,-2259.4,0.0005589,120]
[329985921,1718897448572,-1052.92,0.0005589,120]
[329985922,1718897448581,-500.0,0.0005589,120]
[329985923,1718897448590,-239.35102167,0.0005589,120]
[329985924,1718897448600,-500.0,0.0005589,120]
[329985925,1718897448609,-500.21104545,0.0005589,120]
[329985926,1718897448618,-505.56935591,0.0005589,120]
[329985927,1718897448627,-500.0,0.0005589,120]
[329985928,1718897448637,-3684.15,0.0005589,120]
[329985929,1718897448646,-942.99,0.0005589,120]
[329985930,1718897448655,-564.27,0.0005589,120]
[329985931,1718897448664,-500.0,0.0005589,120]
[329985932,1718897448673,-500.0,0.0005589,120]
[329985933,1718897448683,-500.0,0.0005589,120]
[329985934,1718897448693,-2560.07,0.0005589,120]
[329985935,1718897448705,-953.87,0.0005589,120]
[329985936,1718897448714,-285.82953262,0.0005589,60]
[329985937,1718897448723,-500.0,0.0005589,120]
[329985938,1718897448731,-500.0,0.0005589,120]
[329985939,1718897448740,-500.0,0.0005589,120]
[329985940,1718897448749,-500.0,0.0005589,120]
[329985941,1718897448759,-4385.27,0.0005589,120]
[329985942,1718897448772,-589.25,0.0005589,120]
[329985943,1718897448781,-1699.83,0.0005589,120]
[329985944,1718897448791,-23200.6,0.0005589,120]
[329985945,1718897448799,-518.28603694,0.0005589,120]
[329985946,1718897448811,-500.0,0.0005589,2]
[329985947,1718897448821,-500.0,0.0005589,120]
[329985948,1718897448830,-499.0,0.0005589,2]
[329985949,1718897448839,-454.011743,0.00056,120]
[329985950,1718897448852,-907.63249022,0.00056,120]
[329985951,1718897448863,-4424.10400926,0.00056089,120]
[329985952,1718897448873,-2174.6,0.00056163,120]
[329985953,1718897448882,-788.73,0.00056164,120]
[329985954,1718897448891,-549.76,0.00056164,120]
[329985955,1718897448901,-200.0,0.00056164,7]
[329985956,1718897448911,-520.47,0.00056164,120]
[329985957,1718897448920,-500.0,0.00056164,2]
[329985958,1718897448929,-500.0,0.00056164,60]
[329985959,1718897448939,-660.34,0.00056164,120]
[329985960,1718897448949,-500.0,0.00056164,120]
[329985961,1718897448961,-500.0,0.00056164,120]
[329985962,1718897448970,-2648.39,0.00056164,120]
[329985963,1718897448979,-500.0,0.00056164,120]
[329985964,1718897448989,-530.1840526,0.00056164,120]
[329985965,1718897448999,-987.5,0.00056164,120]
[329985966,1718897449008,-500.0,0.00056164,120]
[329985967,1718897449018,-500.0,0.00056164,120]
[329985968,1718897449027,-979.16,0.00056164,2]
[329985969,1718897449037,-628.91,0.00056164,120]
[329985970,1718897449046,-1592.49,0.00056164,120]
[329985971,1718897449056,-500.0,0.00056164,120]
[329985972,1718897449066,-151.0,0.00056164,120]
[329985973,1718897449075,-7499.998137,0.00056164,120]
[329985974,1718897449085,-7499.998137,0.00056164,120]
[329985975,1718897449095,-500.0,0.00056164,120]
[329985976,1718897449105,-151.0,0.00056164,120]
[329985977,1718897449114,-1297.44,0.00056164,21]
[329985978,1718897449124,-2378.61,0.00056164,120]
[329985979,1718897449133,-2502.11,0.00056164,120]
[329985980,1718897449143,-500.0,0.00056164,120]
[329985981,1718897449153,-260.40153792,0.00056164,120]
[329985982,1718897449162,-500.0,0.00056164,120]
[329985983,1718897449172,-500.0,0.00056164,120]
[329985984,1718897449181,-516.43,0.00056164,120]
[329985985,1718897449191,-500.0,0.00056164,120]
[329985986,1718897449200,-500.0,0.00056164,120]
[329985987,1718897449212,-208.967099,0.00056164,120]
[329985988,1718897449221,-208.967099,0.00056164,120]
[329985989,1718897449231,-151.0,0.00056164,120]
[329985990,1718897449241,-500.0,0.00056164,120]
[329985991,1718897449250,-500.0,0.00056164,120]
[329985992,1718897449260,-151.0,0.00056164,120]
[329985993,1718897449270,-500.0,0.00056164,120]
[329985994,1718897449279,-2131.518048,0.00056164,120]
[329985995,1718897449289,-2259.4,0.00056164,120]
[329985996,1718897449299,-2131.518048,0.00056164,120]
[329985997,1718897449308,-1052.92,0.00056164,120]
[329985998,1718897449318,-515.00526744,0.00056164,120]
[329985999,1718897449327,-539.63329671,0.00056164,120]
[329986000,1718897449337,-500.0,0.00056164,120]
[329986001,1718897449346,-3684.15,0.00056164,120]
[329986002,1718897449356,-151.0,0.00056164,120]
[329986003,1718897449365,-942.99,0.00056164,120]
[329986004,1718897449374,-564.27,0.00056164,120]
[329986005,1718897449384,-549.785826,0.00056164,120]
[329986006,1718897449394,-1000.0,0.00056164,10]
[329986007,1718897449404,-500.0,0.00056164,120]
[329986008,1718897449413,-1000.0,0.00056164,10]
[329986009,1718897449423,-500.0,0.00056164,120]
[329986010,1718897449432,-500.0,0.00056164,120]
[329986011,1718897449442,-549.785826,0.00056164,120]
[329986012,1718897449454,-1000.0,0.00056164,10]
[329986013,1718897449463,-1000.0,0.00056164,10]
[329986014,1718897449472,-1000.0,0.00056164,10]
[329986015,1718897449482,-1000.0,0.00056164,10]
[329986016,1718897449491,-1000.0,0.00056164,10]
[329986017,1718897449501,-151.0,0.00056164,120]
[329986018,1718897449511,-1000.0,0.00056164,10]
[329986019,1718897449520,-1000.0,0.00056164,10]
[329986020,1718897449530,-1000.0,0.00056164,10]
[329986021,1718897449539,-2560.07,0.00056164,120]
[329986022,1718897449548,-1000.0,0.00056164,10]
[329986023,1718897449558,-1000.0,0.00056164,10]
[329986024,1718897449567,-1000.0,0.00056164,10]
[329986025,1718897449577,-1000.0,0.00056164,10]
[329986026,1718897449586,-1000.0,0.00056164,10]
[329986027,1718897449596,-1000.0,0.00056164,10]
[329986028,1718897449605,-1000.0,0.00056164,10]
[329986029,1718897449614,-1000.0,0.00056164,10]
[329986030,1718897449624,-500.150993,0.00056164,10]
[329986031,1718897449633,-151.0,0.00056164,120]
[329986032,1718897449643,-151.0,0.00056164,120]
[329986033,1718897449652,-953.87,0.00056164,120]
[329986034,1718897449662,-421.64564,0.00056164,120]
[329986035,1718897449673,-500.0,0.00056164,120]
[329986036,1718897449683,-421.64564,0.00056164,120]
[329986037,1718897449693,-500.0,0.00056164,120]
[329986038,1718897449702,-500.0,0.00056164,120]
[329986039,1718897449712,-500.0,0.00056164,120]
[329986040,1718897449722,-4385.27,0.00056164,120]
[329986041,1718897449732,-589.25,0.00056164,120]
[329986042,1718897449741,-1699.83,0.00056164,120]
[329986043,1718897449751,-151.0,0.00056164,120]
[329986044,1718897449763,-950.243027,0.00056164,120]
[329986045,1718897449773,-23200.6,0.00056164,120]
[329986046,1718897449783,-950.243027,0.00056164,120]
[329986047,1718897449792,-500.0,0.00056164,2]
[329986048,1718897449802,-151.0,0.00056164,120]
[329986049,1718897449813,-500.0,0.00056164,120]
[329986050,1718897449822,-150.0,0.00056182,120]
[329986051,1718897449831,-4424.10400926,0.00056296,120]
[329986052,1718897449841,-2174.6,0.00056437,120]
[329986053,1718897449852,-788.73,0.00056438,120]
[329986054,1718897449862,-549.76,0.00056438,120]
[329986055,1718897449871,-305.3566708,0.00056438,7]
[329986056,1718897449881,-520.47,0.00056438,120]
[329986057,1718897449891,-403.82542471,0.00056438,2]
[329986058,1718897449900,-500.0,0.00056438,60]
[329986059,1718897449909,-660.34,0.00056438,120]
[329986060,1718897449919,-500.0,0.00056438,120]
[329986061,1718897449928,-500.0,0.00056438,120]
[329986062,1718897449937,-2648.39,0.00056438,120]
[329986063,1718897449946,-500.0,0.00056438,120]
[329986064,1718897449957,-987.5,0.00056438,120]
[329986065,1718897449966,-500.0,0.00056438,120]
[329986066,1718897449976,-151.0,0.00056438,120]
[329986067,1718897449985,-166.63055206,0.00056438,120]
[329986068,1718897449994,-151.0,0.00056438,120]
[329986069,1718897450004,-293.238733,0.00056438,120]
[329986070,1718897450013,-979.16,0.00056438,2]
[329986071,1718897450023,-628.91,0.00056438,120]
[329986072,1718897450032,-265.024962,0.00056438,120]
[329986073,1718897450042,-1592.49,0.00056438,120]
[329986074,1718897450051,-151.0,0.00056438,120]
[329986075,1718897450061,-151.0,0.00056438,120]
[329986076,1718897450070,-500.0,0.00056438,120]
[329986077,1718897450154,-1145.730126,0.00056438,120]
[329986078,1718897450164,-1145.730126,0.00056438,120]
[329986079,1718897450174,-500.0,0.00056438,120]
[329986080,1718897450184,-1297.44,0.00056438,21]
[329986081,1718897450194,-2378.61,0.00056438,120]
[329986082,1718897450205,-2502.11,0.00056438,120]
[329986083,1718897450215,-500.0,0.00056438,120]
[329986084,1718897450224,-500.0,0.00056438,120]
[329986085,1718897450233,-516.43,0.00056438,120]
[329986086,1718897450243,-500.0,0.00056438,120]
[329986087,1718897450252,-500.0,0.00056438,120]
[329986088,1718897450261,-500.0,0.00056438,120]
[329986089,1718897450271,-500.0,0.00056438,120]
[329986090,1718897450280,-500.0,0.00056438,120]
[329986091,1718897450289,-2259.4,0.00056438,120]
[329986092,1718897450299,-1052.92,0.00056438,120]
[329986093,1718897450308,-500.0,0.00056438,120]
[329986094,1718897450318,-3684.15,0.00056438,120]
[329986095,1718897450327,-942.99,0.00056438,120]
[329986096,1718897450337,-564.27,0.00056438,120]
[329986097,1718897450347,-549.785826,0.00056438,120]
[329986098,1718897450356,-500.0,0.00056438,120]
[329986099,1718897450367,-500.0,0.00056438,120]
[329986100,1718897450376,-500.0,0.00056438,120]
[329986101,1718897450386,-549.785826,0.00056438,120]
[329986102,1718897450395,-151.0,0.00056438,120]
[329986103,1718897450405,-2560.07,0.00056438,120]
[329986104,1718897450415,-151.0,0.00056438,120]
[329986105,1718897450424,-151.0,0.00056438,120]
[329986106,1718897450433,-953.87,0.00056438,120]
[329986107,1718897450443,-421.64564,0.00056438,120]
[329986108,1718897450451,-523.03289321,0.00056438,120]
[329986109,1718897450465,-421.64564,0.00056438,120]
[329986110,1718897450475,-500.0,0.00056438,120]
[329986111,1718897450484,-500.0,0.00056438,120]
[329986112,1718897450494,-500.0,0.00056438,120]
[329986113,1718897450503,-4385.27,0.00056438,120]
[329986114,1718897450512,-589.25,0.00056438,120]
[329986115,1718897450521,-1699.83,0.00056438,120]
[329986116,1718897450531,-151.0,0.00056438,120]
[329986117,1718897450542,-23200.6,0.00056438,120]
[329986118,1718897450552,-500.0,0.00056438,2]
[329986119,1718897450561,-151.0,0.00056438,120]
[329986120,1718897450571,-500.0,0.00056438,120]
[329986121,1718897450580,-4424.10400926,0.00056491,120]
[329986122,1718897450590,-150.0,0.00056536,120]
[329986123,1718897450599,-160.0,0.00056596,3]
[329986124,1718897450608,-208.967099,0.00056641,120]
[329986125,1718897450618,-208.967099,0.00056641,120]
[329986126,1718897450627,-151.0,0.00056641,120]
[329986127,1718897450636,-2131.518048,0.00056641,120]
[329986128,1718897450646,-2131.518048,0.00056641,120]
[329986129,1718897450655,-151.0,0.00056641,120]
[329986130,1718897450665,-2174.6,0.00056711,120]
[329986131,1718897450675,-950.243027,0.00056711,120]
[329986132,1718897450684,-950.243027,0.00056711,120]
[329986133,1718897450693,-788.73,0.00056712,120]
[329986134,1718897450703,-549.76,0.00056712,120]
[329986135,1718897450715,-520.47,0.00056712,120]
[329986136,1718897450724,-500.0,0.00056712,60]
[329986137,1718897450734,-151.261375,0.00056712,120]
[329986138,1718897450744,-660.34,0.00056712,120]
[329986139,1718897450753,-500.0,0.00056712,120]
[329986140,1718897450764,-500.0,0.00056712,120]
[329986141,1718897450777,-2648.39,0.00056712,120]
[329986142,1718897450787,-500.0,0.00056712,120]
[329986143,1718897450797,-987.5,0.00056712,120]
[329986144,1718897450808,-333.10733361,0.00056712,120]
[329986145,1718897450817,-979.16,0.00056712,2]
[329986146,1718897450827,-628.91,0.00056712,120]
[329986147,1718897450836,-1592.49,0.00056712,120]
[329986148,1718897450847,-151.0,0.00056712,120]
[329986149,1718897450857,-151.0,0.00056712,120]
[329986150,1718897450867,-500.0,0.00056712,120]
[329986151,1718897450876,-151.0,0.00056712,120]
[329986152,1718897450885,-7499.998137,0.00056712,120]
[329986153,1718897450894,-7499.998137,0.00056712,120]
[329986154,1718897450903,-1145.730126,0.00056712,120]
[329986155,1718897450913,-1145.730126,0.00056712,120]
[329986156,1718897450922,-500.0,0.00056712,120]
[329986157,1718897450932,-151.0,0.00056712,120]
[329986158,1718897450941,-1297.44,0.00056712,21]
[329986159,1718897450951,-2378.61,0.00056712,120]
[329986160,1718897450963,-2502.11,0.00056712,120]
[329986161,1718897450972,-500.0,0.00056712,120]
[329986162,1718897450985,-500.0,0.00056712,120]
[329986163,1718897450995,-516.43,0.00056712,120]
[329986164,1718897451004,-500.0,0.00056712,120]
[329986165,1718897451014,-500.0,0.00056712,120]
[329986166,1718897451023,-151.0,0.00056712,120]
[329986167,1718897451032,-500.0,0.00056712,120]
[329986168,1718897451041,-500.0,0.00056712,120]
[329986169,1718897451051,-500.0,0.00056712,120]
[329986170,1718897451060,-2259.4,0.00056712,120]
[329986171,1718897451069,-1052.92,0.00056712,120]
[329986172,1718897451079,-500.0,0.00056712,120]
[329986173,1718897451088,-3684.15,0.00056712,120]
[329986174,1718897451097,-942.99,0.00056712,120]
[329986175,1718897451106,-564.27,0.00056712,120]
[329986176,1718897451115,-500.0,0.00056712,120]
[329986177,1718897451125,-634.83654616,0.00056712,120]
[329986178,1718897451134,-500.0,0.00056712,120]
[329986179,1718897451143,-2560.07,0.00056712,120]
[329986180,1718897451153,-953.87,0.00056712,120]
[329986181,1718897451162,-500.0,0.00056712,120]
[329986182,1718897451172,-500.0,0.00056712,120]
[329986183,1718897451187,-4385.27,0.00056712,120]
[329986184,1718897451197,-589.25,0.00056712,120]
[329986185,1718897451216,-1699.83,0.00056712,120]
[329986186,1718897451226,-23200.6,0.00056712,120]
[329986187,1718897451235,-500.0,0.00056712,2]
[329986188,1718897451245,-500.0,0.00056712,120]
[329986189,1718897451254,-500.0,0.00056808,120]
[329986190,1718897451264,-500.0,0.00056808,120]
[329986191,1718897451274,-500.0,0.00056808,120]
[329986192,1718897451283,-500.0,0.00056808,120]
[329986193,1718897451293,-500.0,0.00056808,120]
[329986194,1718897451302,-500.0,0.00056808,120]
[329986195,1718897451311,-500.0,0.00056808,120]
[329986196,1718897451321,-500.0,0.00056808,120]
[329986197,1718897451330,-500.0,0.00056808,120]
[329986198,1718897451339,-500.0,0.00056808,120]
[329986199,1718897451349,-508.92,0.00056808,120]
[329986200,1718897451359,-2174.6,0.00056984,120]
[329986201,1718897451369,-2174.6,0.00056985,120]
[329986202,1718897451378,-788.73,0.00056986,120]
[329986203,1718897451387,-549.76,0.00056986,120]
[329986204,1718897451397,-520.47,0.00056986,120]
[329986205,1718897451407,-500.0,0.00056986,60]
[329986206,1718897451416,-151.0,0.00056986,120]
[329986207,1718897451425,-660.34,0.00056986,120]
[329986208,1718897451435,-500.0,0.00056986,120]
[329986209,1718897451444,-500.0,0.00056986,120]
[329986210,1718897451453,-2648.39,0.00056986,120]
[329986211,1718897451463,-500.0,0.00056986,120]
[329986212,1718897451472,-987.5,0.00056986,120]
[329986213,1718897451482,-151.0,0.00056986,120]
[329986214,1718897451491,-151.0,0.00056986,120]
[329986215,1718897451500,-979.16,0.00056986,2]
[329986216,1718897451510,-628.91,0.00056986,120]
[329986217,1718897451520,-1592.49,0.00056986,120]
[329986218,1718897451531,-500.0,0.00056986,120]
[329986219,1718897451542,-500.0,0.00056986,120]
[329986220,1718897451552,-1297.44,0.00056986,21]
[329986221,1718897451561,-2378.61,0.00056986,120]
[329986222,1718897451570,-2502.11,0.00056986,120]
[329986223,1718897451580,-500.0,0.00056986,120]
[329986224,1718897451589,-500.0,0.00056986,120]
[329986225,1718897451599,-516.43,0.00056986,120]
[329986226,1718897451610,-500.0,0.00056986,120]
[329986227,1718897451620,-500.0,0.00056986,120]
[329986228,1718897451631,-208.967099,0.00056986,120]
[329986229,1718897451642,-208.967099,0.00056986,120]
[329986230,1718897451654,-500.0,0.00056986,120]
[329986231,1718897451665,-500.0,0.00056986,120]
[329986232,1718897451676,-151.0,0.00056986,120]
[329986233,1718897451685,-500.0,0.00056986,120]
[329986234,1718897451695,-2131.518048,0.00056986,120]
[329986235,1718897451705,-2259.4,0.00056986,120]
[329986236,1718897451715,-2131.518048,0.00056986,120]
[329986237,1718897451724,-1052.92,0.00056986,120]
[329986238,1718897451734,-500.0,0.00056986,120]
[329986239,1718897451743,-3684.15,0.00056986,120]
[329986240,1718897451753,-207.126712,0.00056986,120]
[329986241,1718897451766,-942.99,0.00056986,120]
[329986242,1718897451777,-564.27,0.00056986,120]
[329986243,1718897451787,-549.785826,0.00056986,120]
[329986244,1718897451796,-500.0,0.00056986,120]
[329986245,1718897451807,-500.0,0.00056986,120]
[329986246,1718897451816,-549.785826,0.00056986,120]
[329986247,1718897451895,-151.0,0.00056986,120]
[329986248,1718897451905,-2560.07,0.00056986,120]
[329986249,1718897451914,-151.0,0.00056986,120]
[329986250,1718897451923,-151.0,0.00056986,120]
[329986251,1718897451933,-953.87,0.00056986,120]
[329986252,1718897451942,-421.64564,0.00056986,120]
[329986253,1718897451952,-421.64564,0.00056986,120]
[329986254,1718897451964,-500.0,0.00056986,120]
[329986255,1718897451974,-500.0,0.00056986,120]
[329986256,1718897451984,-4385.27,0.00056986,120]
[329986257,1718897451993,-589.25,0.00056986,120]
[329986258,1718897452003,-1699.83,0.00056986,120]
[329986259,1718897452013,-151.0,0.00056986,120]
[329986260,1718897452023,-950.243027,0.00056986,120]
[329986261,1718897452032,-23200.6,0.00056986,120]
[329986262,1718897452042,-500.0,0.00056986,2]
[329986263,1718897452051,-115.96486362,0.00056986,120]
[329986264,1718897452145,-486.4039661,0.00056986,120]
[329986265,1718897452157,-347.87419728,0.00056986,120]
[329986266,1718897452166,-500.0,0.00056986,120]
[329986267,1718897452176,-3093.13039939,0.00057023,120]
[329986268,1718897452220,-500.0,0.00055068,120]
[329986269,1718897452230,-500.0,0.00055068,120]
[329986270,1718897452240,-500.0,0.00055342,120]